{"text_format":"1","workbook":"xlsx","n_sheets":4,"sheets":["PAGINA PRINCIPAL","REGISTRO DE PROYECTOS ","SEGUIMIENTO A PROYECTOS","CRONOGRAMA 2018"],"not_rendered":{"charts":0,"images":4,"macros":1,"external_links":0,"defined_names":1,"comments":1,"pivot_tables":0},"unopened":[],"bounds":{"document_bytes":16777216,"sheet_cells":100000,"rows_first":2000,"rows_last":500,"rows_between":2000,"halvings":0,"cell_chars":16384,"cell_head_chars":4096},"cells_cut":0,"cells_raw":0,"read":"whole","date_system":"1900"}

{"sheet":"PAGINA PRINCIPAL","index":0,"n_rows":27,"n_cols":6,"rows_kept":27,"cut":false,"hidden":true,"merged":[[25,1,25,5],[26,1,26,4],[27,1,27,4]]}
[]
[]
[]
[]
[]
[]
[]
[]
[]
[]
[]
[]
[]
[]
[]
[]
[]
[]
[]
[]
[]
[]
[]
[]
[]
[null,"SEGUIMIENTO DE PROYECTOS"]
[null,"TOTAL DE PROYECTOS REGISTRADOS",null,null,null,{"$f":"'REGISTRO DE PROYECTOS '!AZ2","v":28}]

{"sheet":"REGISTRO DE PROYECTOS ","index":1,"n_rows":35,"n_cols":52,"rows_kept":35,"cut":false,"hidden":false,"merged":[[0,50,0,51],[0,0,1,13],[5,11,5,12],[5,0,6,0],[5,2,6,2],[5,9,6,9],[5,13,6,13],[5,1,6,1],[5,10,6,10],[5,8,6,8],[5,5,6,5],[5,6,6,6],[5,3,6,3],[5,7,6,7],[5,4,6,4]]}
["EMPRESA SOCIAL DEL ESTADO HOSPITAL SAGRADO CORAZON DE JESUS\nPROYECTOS REGISTRADOS AÑO 2012 - 2018",null,null,null,null,null,null,null,null,null,null,null,null,null,null,null,null,null,null,null,null,null,null,null,null,null,null,null,null,null,null,null,null,null,null,null,null,null,null,null,null,null,null,null,null,null,null,null,null,null,"FORMULA"]
[null,null,null,null,null,null,null,null,null,null,null,null,null,null,null,null,null,null,null,null,null,null,null,null,null,null,null,null,null,null,null,null,null,null,null,null,null,null,null,null,null,null,null,null,null,null,null,null,null,null,null,{"$f":"COUNTA(C8:C35)","v":28}]
[]
[]
[]
["Item","CODIGO","NOMBRE DEL PROYECTO","TIPO DE PROYECTO","DESCRIPCION ","COSTO DEL PROYECTO","ENTIDAD FINANCIADORA","FECHA DE ENTREGA","RADICADO DE ENTREGA ","DOCUMENTOS DE SOPORTE ","TIPO DE DOCUMENTO","Forma de Entrega (4)",null,"OBSERVACION "]
[null,null,null,null,null,null,null,null,null,null,null,"Impresa","Digital"]
[1,"1100-53.02(13)","MEJORMIENTO PLANTA FISICA DEL HOSPITAL SAGRADO CORAZON DE JESUS, MUNICIPIO VALLE DEL GUAMUEZ, DEPARTAMENTO DEL PUTUMAYO.","INFRAESTRUCTURA HOSPITALARIA  ","EL HOSPITAL SAGRADO CORAZON DE JESUS, PRESENTA PROBLEMAS DE HUMEDAD Y MALOS MANEJOS DE AGUAS FREATICAS, ESTO HA OCACIONADO  QUE LA INFRAESTRUCTURA DE SUS INSTALACIONES SE DETERIOREN FACILMENTE, DAÑANDO REPELLOS, TERMINADOS Y PUERTAS.",520425223,"GOVERNACION DEL PUTUMAYO","2015-05-28",13189,"FICHA MGA - MAPA DE LOCALIZACION DEL PROYECTO - PLANOS DE MEJORAMIENTO DEL PROYECTO EM MENCION - COSTOS DE CONSTRUCCION","PDF","X","X"]
[2,"1100-53.02(08)","ADECUACION DEL ANDEN PERIMETRAL DEL HOSPITAL SAGRADO CORAZON DE JESUS SECCION PYP BARRIO LAS AMERICAS MUNICIPIO VALLE DEL GUAMUEZ, DEPARTAMENTO DEL PUTUMAYO.","INFRAESTRUCTURA HOSPITALARIA  ","EL ANDEN PERIMETRAL Y LA MALLA DE CERRAMIENTO SE ENCUENTRAN EN MUY MALAS CONDICIONES.",56626146,null,"2014-08-26",null,"FICHA MGA -  PRESUPUESTO Y PRECIOS UNITARIOS - CRONOGRAMA - ARBOL DE OBJETIVOS - ARBOL DE PROBLEMAS - VALORACION Y CUANTIFICACION DE BENEFICIOS - PLANOS DE LOCALIZACION - PLANOS - REGISTRO FOTOGRAFICO","PDF","X",null,"EL DOCUMENTO NO PRESENTA UN MEDIOS ENTREGA EN MEDIOS MAGNETICOS, DE IGUAL FORMA NO SE OBSERVA OFICIOS DE ENTREGA DEL PROYECTO."]
[3,"1100-53.02(16)","MEJORAMIENTO Y CONSTRUCCION DE PARQUEADEROS Y ZONAS VERDES, E.S.E JESUS SECCION PYP BARRIO LAS AMERICAS MUNICIPIO VALLE DEL GUAMUEZ, DEPARTAMENTO DEL PUTUMAYO.","INFRAESTRUCTURA HOSPITALARIA  ","LA ADMINISTRACION, EMPLEADOS Y ADMINISTRATIVOS DE LA E.S.E HOSPITAL SAGRADO CORAZON DE JESUS NO CUNETAN CON ESTACIOS IDONEOS PARA EL ESTACIONAMIENTO DE VEHICULOS, YA QUE ESTAS AREAS CUENTAN CON ESTACIOS MUY REDUCIDOS RESULTANDO INSUFICIENTES, ADEMAS DE LAS ZONAS VERDES QUE GENEREN UN AMBIENTE IDONEO. ",326191189.37,null,"2015-08-20",null,"FICHA MGA - FICHA EBI - PRESUPUESTO - ANEXOS (ARBOL DE PROBLEMAS, ARBOL DE OBJETIVOS, LOCALIZACION GEOGRAFICA, PLANOS).","PDF","X","X","EL DOCUMENTO NO PRESENTA OFICIOS DE ENVIO  A LAS ENTIDADES FINANCIADORAS."]
[4,"1100-53.02(19)","SUMINISTRO E INSTALACION DE UNA PLANTA DE TRATAMIENTO DE AGUA POTABLE , PARA EL ABASTECIMIENTO DE AGUA POR BOMBEO DEL HOSPITAL SAGRADO CORAZON DE JESUS SECCION PYP BARRIO LAS AMERICAS MUNICIPIO VALLE DEL GUAMUEZ, DEPARTAMENTO DEL PUTUMAYO.","DOTACION ","LOS EMPLEADOS Y USUARIOS DEL HOSPITAL SAGRADO CORAZON DE JESUS EN EL VALLE DEL GUAMUEZ,CAPTAN AGUA PARA EL CONSUMO EN ALJIBES ARTESANALES, YA QUE NO CUENTAN CON UNA PLANTA DE TRATAMIENTO PARA POTABILIZAR EL AGUA, CUYO EFECTO SE REFLEJA EN LAS ALTAS TASAS DE ENFERMEDADES GASTROINTESTINALES Y ENDEMICAS.",184166753,"HOSPITAL SAGRADO CORAZON DE JESUS Y ALCALDIA MUNICIPAL","2016-02-10",null,"DOCUMENTO LEGALES ESE HOSPITAL SAGRADO CORAZON DE JESUS - DOCUMENTOS DEL REPRESENTANTE LEGAL - ESTUDIO DE SUELOS - ESTUDIOS TOPOGRAFICOS - FICHA MGA - PLANOS.","PDF","X",null,"EL DOCUMENTO NO PRESENTA UN MEDIOS ENTREGA EN MEDIOS MAGNETICOS, DE IGUAL FORMA NO SE OBSERVA OFICIOS CON SU RESPECTIVO RADICADO DE RECEPCION."]
[5,"1100-53.02(17)","CONSTRUCCION DEL AREA INTEGRAL DE PEDIATRIA, \"E.S.E JESUS SECCION PYP BARRIO LAS AMERICAS MUNICIPIO VALLE DEL GUAMUEZ, DEPARTAMENTO DEL PUTUMAYO\".","INFRAESTRUCTURA HOSPITALARIA  ","LOS USUARIOS DE LA ESE HOSPITAL SAGRADO CORAZON DE JESUS RECIBEN UNA REGULAR ATENCION EN LOS SERVICIOS MEDICOS, YA QUE ESTAS AREAS CUENTAN CON ESPACIOS MUY REDUCIDOS RESULTANDO INSUFICIENTES PARA LA DEMANDA DE ESTOS SERVICIOS.",1641893372,"OCAD DEPARTAMENTAL","2015-08-25",null,"CARTAS Y CERTIFICACIONES - FICHA MGA - PLANOS - MEMORIAS DE CALCULO - ANEXOS (ARBOL DE PROBLEMAS, ARBOL DE OBJETIVOS, LOCALIZACION GEOGRAFICA, DOCUMENTOS DEL INGENIRO). ","PDF","X","X"]
[6,"1100-53.02(14)","ADQUISICION DE UNA UNIDAD MOVIL PARA PROMOCION Y PREVENION DEL HOSPITAL \"SAGRADO CORAZON DE JESUS\" MUNICIPIO VALLE DEL GUAMUEZ DEPARTAMENTO DEL PUTUMAYO.","DOTACION ","POR LA ALTA POBLACION DISPERSA EN EL MUNICIPIO, SE ENCUENTRA DESPROTEGIDA LA COMUNIDAD POR LA POCA ATENCION EN SALUD, ADEMAS LA DISTANCIA Y LAS VIAS DE ACCESO SON DIFICILES PARA CONSULTAR LOS SERVICIOS EN EL MUNICIPIO VALLE DEL GUAMUEZ.",247170000,"ALCALDIA MUNICIPAL - UNIDAD DE VICTIMAS - MINISALUD ","2015-06-15",null,"FICHA MGA, CERTIFICACIONES Y MONTOS DEL PROYECTO, ANEXOS (ARBOL DE PROBLEMAS, ARBOL DE OBJETIVOS, LOCALIZACION GEOGRAFICA Y COTIZACIONES)","PDF","X",null,"NO PRESENTA DOCUMENTOS EN MEDIO MAGNETICO, DE IGUAL FORMA EXISTEN DOCUMENTOS FUERA DE LA CARPETA QUE CONTIE EL PROYECTO."]
[7,"1100-53.02(02)","REMODELACION DE LA PLANTA FISICA DEL AREA DE QUIROFANO Y SALA PARTOS DE LA E.S.E HOSPITAL \"SAGRADO CORAZON DE JESUS\" MUNICIPIO VALLE DEL GUAMUEZ DEPARTAMENTO DEL PUTUMAYO.","INFRAESTRUCTURA HOSPITALARIA  ","EL SERVICIO DE QUIROFANO Y SALA DE PARTOS RECIBEN UNA REGULAR ATENCION EN LOS SERVICIOS MEDICOS, YA QUE ESTAN CON ESPACIOS MUY REDUCIDOS RESULTANDO INSUFICIENTES PARA LA DEMANDA DE ESTOS SERVICIOS.",400000000,"GOBERNACION DEL PUTUMAYO","2013-01-20",null,"FICHA MGA - MAPA DE LOCALIZACION DEL PROYECTO - PLANOS DE REMODELACION  - COSTOS DE CONSTRUCCION","PDF","X","X"]
[8,"1100-53.02(07)","SERVICIO GINECOLOGICO PARA LA ATENCION DE GESTANTES DE ALTO RIESGO EN EL MUNICIPIO VALLE DEL GUAMUEZ, DEPARTAMENTO DEL PUTUMAYO.","PRESTACION DE SERVICIOS ","PARA REALIZAR UN EFECTIVO CONTROL DEL EMBARAZO, PARTO Y PUERPERIO DE LA MADRE Y EL CONTROL MEDICO DEL RECIEN NACIDO, SE REQUIERE DE UN GINECOLOGO, DEL CUAL EL HOSPITAL SAGRADO CORAZON DE JESUS NO DISPONE DE ESTE RECURSO ESPECIALIZADO.",60000000,"ALCALDIA MUNICIPAL ","2014-05-28",null,"FICHA MGA - CERTIFICACIONES - OFICIOS DE PRESENTACION DEL PROYECTO - ANALISIS TECNICO - ANEXOS (ARBOL DE PROBLEMAS, ARBOL DE OBJETIVOS Y LOCALIZACION GEOGRAFICA)","PDF","X",null,"NO PRESENTA DOCUMENTOS EN MEDIO MAGNETICO"]
[9,"1100-53.02(09)","AMPLIACION DE AREA MATERNO INFANTIL DEL PESTO DE SALUD DE LA INSPECCION DE POLICIA DEL TIGRE, MUNICIPIO VALLE DEL GUAMUEZ DEPARTAMENTO DEL PUTUMAYO.","INFRAESTRUCTURA HOSPITALARIA  ","LOS USUARIOS DEL PUESTO DE SALUD DE LA INSPECCION EL TIGRE RECIBEN UNA REGULAR ATENCION EN LOS SERVICIOS MEDICOS, YA QUE ESTAS AREAS CUENTAN CON ESPACIOS MUY REDUCIDOS RESULTANDO INSUFICIENTE PARA LA DEMANDA DE ESTOS SERVICIOS.",72843313,"MINISALUD","2014-06-27",null,"FICHA EBI - MAPA DE LOCALIZACION DEL PROYECTO - PLANOS DEL PUESTO DE SALUD - COSTOS UNITARIOS Y TOTALES DEL VALOR DE LA CONSTRUCCION","PDF","X",null,"NO PRESENTA DOCUMENTOS EN MEDIO MAGNETICO"]
[10,"1100-53.02(20)","ADQUISICION DE UNS UNIDAD MOVIL PARA PROMOCION Y PREVENION DEL HOSPITAL SAGRADO CORAZON DE JESUS, MUNICIPIO VALLE DEL GUAMUEZ, DEPARTAMENTO DEL PUTUMAYO.","DOTACION ","POR LA ALTA POBLACION DISPERSA EN EL MUNICIPIO, SE ENCUENTRA DESPROTEGIDA LA COMUNIDAD POR LA POCA ATENCION EN SALUD, ADEMAS LA DISTANCIA Y LAS VIAS DE ACCESO SON DIFICILES PARA CONSULTAR LOS SERVICIOS EN EL MUNICIPIO VALLE DEL GUAMUEZ.",280000000,"ALCALDIA MUNICIPAL - MINISALUD - HOSPITAL SAGRADO CORAZON DE JESUS","2016-08-26",null,"FICHA MGA - PROYECTO - CERIFICACIONES - COTIZACIONES ","PDF","X",null,"NO PRESENTA DOCUMENTOS EN MEDIO MAGNETICO"]
[11,"1100-53.02(15)","DOTACION DEL AREA DE URGENCIAS DEL HOSPITAL \"SAGRADO CORAZON DE JESUS\" MUNICIPIO VALLE DEL GUAMUEZ, DEPARTAMENTO DEL PUTUMAYO.","DOTACION ","LOS EQUIPOS DE URGENCIAS ESTAN OBSOLETOS O YA PERDIERON SU VIDA UTIL, SE REQUIERE DOTAR EL AREA DE EQUIPOS.",150000000,"ALCALDIA MUNICIPAL ","2015-06-30",null,"FICHA MGA - PRESENTACION DEL PROYECTO - ANEXOS (ARBOL DE PROBLEMAS, ARBOL DE OBJETIVOS, LOCALIZACION GEOGRAFICA Y COSTO DEL PROYECTO)","PDF","X",null,"NO PRESENTA DOCUMENTOS EN MEDIO MAGNETICO"]
[12,"1100-53.02(05)","ADQUISICION DE UNA PLANTA POTABILIZADORA DE AGUA PARA EL HOSPITAL \"SAGRADO CORAZON DE JESUS\" MUNICIPIO VALLE DEL GUAMUEZ, DEPARTAMENTO DEL PUTUMAYO.","DOTACION ","ESTUDIOS AFIRMAN QUE EN EL MUNICIPIO DEL VALLE DEL GUAMUEZ DEPARTAMENTO DEL PUTUMAYO, PRESENTA GRANDES FALENCIAS EN LA PRESTACION DEL SUMINISTRO, Y ADEMAS PRESENTA UN ALTO RIESGO DE SALUD POR LA MALA CALIDAD DEL LIQUIDO QUE CONSUMEN SUS HABITANTES, POR ENDE LOS PACIENTES DEL HOSPITAL SAGRADO CORAZON DE JESUS.",28650000,"GOBERNACION DEL PUTUMAYO","2014-05-28",null,"FICHA MGA - MAPA DE LOCALIZACION DEL PROYECTO ","PDF","X","X"]
[13,"1100-53.02(10)","ADQUISICION DE DOS AMBULANCIAS BASICAS PARA LA ESE HOSPITAL SAGRADO CORAZON DE JESUS, MUNICIPIO VALLE DEL GUAMUEZ DEPARTAMENTO DEL PUTUMAYO","DOTACION ","EN LA ACTUALIDAD EL HOSPITAL SAGRADO CORAZON DE JESUS DISPONE UNICAMENTE DE UNA AMBULANCIA DEL CUAL NO ES SUFICIENTE PARA ATENDER EL ALTO NUMERO DE REMISIONES, POR LO TANTO SE VE EN LA NECESIDAD DE CONTRATAR AMBULANCIAS PRIVADAS.",425000000,"MINISALUD","2015-02-24",201542300292472,"FICHA MGA - MAPA DE LOCALIZACION DEL PROYECTO - COSTOS Y COTIZACIONES DE LAS AMBULANCIAS ","PDF","X",null,"NO PRESENTA DOCUMENTOS EN MEDIO MAGNETICO"]
[14,"1100-53.02(06)","DISEÑO DE UNA PLANTA DE TRATAMIENTO DE AGUAS RESIDUALES PARA EL HOSPITAL \"SAGRADO CORAZON DE JESUS\" MUNICIPIO VALLE DEL GUAMUEZ","INFRAESTRUCTURA HOSPITALARIA  ","ALTO IMPACTO SOBRE EL MEDIO AMBIENTE Y LA SALUD POR EL VERTIMIENTO DE AGUAS RESIDUALES HOSPITALARIAS QUE SON PRODUCTO DE ACTIVIDADES Y SERVICIOS QUE NO CUENTAN CON PREVIO TRATAMIENTO; ESTAS AGUAS VAN DIRECTAMENTE AL ALCANTARILLADO MUNICIPAL CONTAMINANDO LA FUENTE HIDRICA DE LA QUEBRADA LA HORMIGA.",106695259,"ECOPETOR ","2014-05-28",null,"FICHA MGA -  ASPECTOS TECNICOS - COSTOS DEL PROYECTO ","PDF","X",null,"NO PRESENTA DOCUMENTOS EN MEDIO MAGNETICO"]
[15,"1100-53.02(11)","DOTACION DEL PUESTO DEL SALUD SAN ANDRES DEL HOSPITAL SAGRADO CORAZON DE JESUS, MUNICIPIO VALLE DEL GUAMUEZ DEPARTAMENTO DEL PUTUMAYO","DOTACION ","ESCASA DOTACION DE EQUIPOS EN EL PUESTO DE SALUD ",38748640,"MINISALUD","2015-04-24",null,"FICHA MGA - MAPA DE LOCALIZACION DEL PROYECTO - COSTO DE LOS EQUIPOS ","PDF","X",null,"NO PRESENTA DOCUMENTOS EN MEDIO MAGNETICO"]
[16,"1100-53.02(03)","DOTACION DE LA UNIDAD DE IMAGENOLOGIA DEL HOSPITAL SAGRADO CORAZON DE JESUS, MUNICIPIO VALLE DEL GUAMUEZ DEPARTAMENTO DEL PUTUMAYO","DOTACION ","POR DISPOSICION DE EQUIPOS OBSOLETOS Y DE TECNOLOGIA ANTIGUA, EL SERVICIO DE IMAGENOLOGIA NO VIENE PRESTANDOSE ADECUADAMENTE POR LO TANTO SE CONTRATA EL SERVICIO CON OTRAS INSTITUCIONES DE MUNICIPIOS CERCANOS.",401772960,"HOSPITAL SAGRADO CORAZON DE JESUS Y ALCALDIA MUNICIPAL","2013-10-02",null,"FICHA EBI - MAPA DE LOCALIZACION DEL PROYECTO - COSTOS Y COTIZACIONES DE LOS EQUIPOS DE IMAGENOLOGIA ","PDF","X","X"]
[17,"1100-53.02(12)","DOTACION DE CINCO CAMILLAS PARA EL AREA DE HOSPITALIZACION DE LA E.S.E HOSPITAL \"SAGRADO CORAZON DE JESUS\" MUNICIPIO VALLE DEL GUAMUEZ DEPARTAMENTO DEL PUTUMAYO","DOTACION ","COMO LOS EQUIPOS DEL AREA DE HOSPITALIZACION ESTAN OBSOLETOS O QUE YA PERDIERON SU VIDA UTIL, SE REQUIERE DOTAR EL AREA DE EQUIPOS MODERNOS.",5528000,"PLAN DE CONSOLIDACION NACIONAL","2015-05-24",null,"FICHA MGA - CERTIFICACIONES - ANEXOS (ARBOL DE PROBLEMAS, ARBOL DE OBJETIVOS Y LOCALIZACION GEOGRAFICA)","PDF","X","X"]
[18,"1100-53.02(01)","DOTACION DE PUESTO DE SALUD EL VENADO MUNICIPIO DE VALLE DEL GUAMUEZ DEPARTAMENTO DEL PUTUMAYO","DOTACION ","ESCASA DOTACION DE EQUIPOS EN EL PUESTO DE SALUD EL VENADO ",103537501,"ALCALDIA MUNICIPAL - ECOPETROL","2012-12-04",null,"FICHA MGA - MAPA DE LACALIZACION DEL PROYECTO - COSTO DE LOS EQUIPOS","PDF","X",null,"NO PRESENTA DOCUMENTOS EN MEDIO MAGNETICO"]
[19,"1100-53.02(18)","DOTACION DE EQUIPOS HOSPITALARIOS PARA EL HOSPITAL SAGRADO CORAZON DE JESUS, MUNICIPIO VALLE DEL GUAMUEZ DEPARTAMENTO DEL PUTUMAYO","DOTACION ","COMO LOS EQUIPOS DEL AREA DE HOSPITALIZACION ESTAN OBSOLETOS O QUE YA PERDIERON SU VIDA UTIL, SE REQUIERE DOTAR EL AREA DE EQUIPOS MODERNOS.",1200000000,"MINISALUD","2015-11-23",16097,"FICHA MGA - MAPA DE LOCALIZACION - COSTOS Y COTIZACION DE LOS EQUIPOS ","PDF","X",null,"NO PRESENTA DOCUMENTOS EN MEDIO MAGNETICO"]
[20,"1100-53.02(04)","FORTALECIMIENTO DEL PROGRAMA AMPLIADO DE IMUNIZACIONES (PAI) MUNICIPIO VALLE DEL GUAMUEZ DEPARTAMENTO DEL PUTUMAYO",null,"A nivel nacional se establece como coberturas útiles de vacunación las metas superiores al 95%.  El Municipio Valle del Guamuez no ha logrado\ncoberturas útiles debido a los siguientes inconvenientes:\n1.Alta población estimada por el DANE en los años 2008 a 2012 comparado con los nacimientos reales en el Municipio Valle del Guamuez .\n2.Población rural dispersa lo que dificulta el desplazamiento de la población hacia los puestos de vacunación.\n3.Desplazamiento de la población a otros municipios y la provincia de Sucumbios Ecuador por cuestiones laborales.\n4.Situaciones de orden público ocasionales que han ocasionado desplazamientos masivos de la población hacia otros municipios.\n5.Fortalecimiento de sistema nominal PAI WEB en el municipio Valle del Guamuez.",50000000,"ALCALDIA MUNICIPAL","2014-05-26",null,"FICHA MGA - MAPA DE LACALIZACION DEL PROYECTO - COSTOL PROYECTO","PDF","X","X"]
[21,"1100-53.02(21)","REMODELACION DE LA PLANTA FISICA DEL MODULO DE PROMOCION Y PREVENCION  DE LA E.S.E HOSPITAL \"SAGRADO CORAZON DE JESUS\" MUNICIPIO VALLE DEL GUAMUEZ DEPARTAMENTO DEL PUTUMAYO.","INFRAESTRUCTURA HOSPITALARIA  ","En la actualidad el municipio de valle del guamuez dispone de una infraestructura para la atención del programa de salud con equidad la cual\nrequiere de unas ampliaciones y remodelación con el propósito de mejorar la atención a los usuario y ampliar la demanda que en la\nactualidad se presenta en las instalaciones, igualmente requiere de adecuaciones y arreglos en algunas áreas de las instalaciones debido a\nque con el paso del tiempo han sufrido daños que significan una afectación en el buen servicio.",928924000,"MINISALUD","2017-11-08",null,"FICHA MGA WEB - PERFIL DEL PROYECTO - ARBOL DE PROBLEMAS Y OBJETIVOS - VENTAS Y BENEFICIOS - CERTIFICACIONES - PROGRAMA MEDICO ARQUITECTONICO - COMPARATIVO CAPACIDAD ACTUAL VS CAPACIDAD PROPUESTA - PRESUPUESTO GENERAL - CANTIDADES DE OBRA - APU - MEMORIA TECNICA ELECTRICOS - REGISTRO FOTOGRAFICO - CRONOGRAMA DE ACTIVIDADES - FLUJO DE CAJA - PLANOS ","PDF","X","X"]
[22,"1100-53.02(24)","ADQUISICION DE DOS AMBULANCIAS MEDICALIZADAS PARA LA ESE HOSPITAL SAGRADO CORAZON DE JESUS, MUNICIPIO VALLE DEL GUAMUEZ DEPARTAMENTO DEL PUTUMAYO","DOTACION ","Limitado acceso y disponibilidad en la prestación del servicios de trasporte asistencial medicalizado (TAM) en la ESE Hospital Sagrado Corazón de Jesús de la Hormiga, Municipio Valle del Guamuez Departamento del Putumayo.","$ 679.000.000\n","MINISALUD, EMERGENCIAS Y DESASTRES","2018-07-03",201842301009772,"FICHA MGA - ANTEPROYECTO - COTIZACIONES - LOCALIZACION","PDF","X","X"," "]
[23,"1100-53.02(22)","ADQUISICION DE CUATRO PLANTAS POTABILIZADORAS DE AGUA PARA EL HOSPITAL SAGRADO CORAZON DE JESUS \"SEDE PRINCIPAL, SEDE PYP, PUESTO DE SALUD EL TIGRE Y PUESTO DE SALUD EL PLACER\", DEL MUNICIPIO VALLE DEL GUAMUEZ DEPARTAMENTO DEL PUTUMAYO","DOTACION ","EL PROYECTO PROPUESTO POR EL HOSPITAL SAGRADO CORAZÓN DE JESÚS DE LA HORMIGA, PRETENDE MEJORAR LA CALIDAD DE LA PRESTACIÓN DE SERVICIOS A LA COMUNIDAD DEL VALLE DEL GUAMUEZ Y SUS ALREDEDORES, POR MEDIO DE SUMINISTRO DE AGUA APTA PARA CONSUMO HUMANO, DISMINUCIÓN DE LOS FACTORES DE RIESGO RELACIONADO CON LA CALIDAD DE AGUA Y PROCESOS SEGUROS. PARA ELLO EL HOSPITAL REQUIERE CUATRO (04) PLANTAS POTABILIZADORAS DE AGUA QUE ESTARÁN UBICADAS EN LAS PRINCIPALES INSPECCIONES DE MAYOR DEMANDA DE USUARIOS DEL VALLE DEL GUAMUEZ.",197072000,"EMBAJADA DE JAPON - HOSPITAL","2018-02-26",null,"FICHA JAPON 2018 - CUADRO DE COSTOS - CUADRO COMPARATIVO DE COTIZACIONES - ESTADOS FINANCIEROS - REGISTRO FOTOGRAFICO","PDF","X","X"]
[24,"1100-53.02(23)","ADQUISICIÓN DE DOS (02) PLANTAS ELÉCTRICAS PARA LA SEDE PRINCIPAL Y LA SEDE DE PROMOCIÓN Y PREVENCIÓN DE LA ESE HOSPITAL SAGRADO CORAZÓN DE JESÚS DE LA HORMIGA.","DOTACION ","ACTUALMENTE LA CAPACIDAD TECNOLÓGICA SE ENCUENTRA EN ZONA DE RIEGO RIESGO LATENTE YA QUE PARA LA UTILIZACIÓN DE LOS DIFERENTES DISPOSITIVOS MÉDICOS SE REQUIERE COMO BASE FUNDAMENTAL LA ENERGÍA ELÉCTRICA. EL SERVICIO DE ENERGÍA ELÉCTRICA PRESTADO POR LA EMPRESA DE ENERGÍA DEL BAJO PUTUMAYO, PRESENTA FLUCTUACIONES DE ENERGÍA QUE GENERAN APAGONES CONSTANTES, Y ESTO CONLLEVA A LA AFECTACIÓN Y LA CONTINUIDAD DE LA PRESTACIÓN DE SERVICIOS DE SALUD PARA LOS HABITANTES DEL MUNICIPIO",295498730,"ONU - HOSPITAL ","2018-05-30",null,"FICHA DILIGENCIADA - REGISTRO FOTOGRAFICO Y LOCALIZACION - OFICIOS VARIOS ","PDF","X","X"]
[25,"1100-53.02(25)","ADQUISICIÓN DE UN (01) VEHÍCULO TERRESTRE PARA EL TRANSPORTE DEL PERSONAL ASISTENCIAL QUE PRESTARA SERVICIOS DE SALUD EN LA MODALIDAD EXTRAMURAL DE LA E.S.E. HOSPITAL SAGRADO CORAZON DE JESUS, MUNICIPIO VALLE DEL GUAMUEZ, DEPARTAMENTO DEL PUTUMAYO","DOTACION "," Para dichos desplazamientos la ESE debe contar con un vehículo adecuado que asegure el  despliegue del personal  y los insumos necesarios para la atención de la población en las zonas de atención destinadas. Dentro de la atención extramural se caracteriza un fuerte del Hospital Sagrado corazón de Jesús se concentra en el programa de maternidad segura, que asegura su captación, traslado hasta el centro principal de atención y el retorno a su vivienda, el vehículo extramural hace parte del modelo de atención integral en salud (MIAS), Componente de Atención Primaria en Salud, para fortalecer las acciones de promoción y prevención en el área rural y parte de cabecera municipal del municipio Valle del Guamuez. ",131500000,"MINISALUD",null,null,"FICHA MGA - ANTEPROYECTO - COTIZACIONES - LOCALIZACION","PDF","X",null,"SE RELACIONAN CUADROS EN BLANCO POR LA FALTA DE INFORMACION, ESTAS REPRESENTAN LA DIRECCION DE LOS PROYECTOS"]
[26,"1100-53.02(26)","ADQUISICIÓN DE TRES  AMBULANCIAS BASICAS PARA LA ESE HOSPITAL SAGRADO CORAZÓN DE JESÚS DE LA HORMIGA, MUNICIPIO DEL VALLE DEL GUAMUEZ DEPARTAMENTO DEL PUTUMAYO","DOTACION ","La ESE presenta deficiencias específicamente en el servicio de traslado asistencial básico (TAB), en cuanto a  capacidad técnica y logística para el trasporte asistencial de pacientes, lo anterior debido a las condiciones de los mismos, ya que estos vehículos poseen un promedio utilitario al servicio del hospital de 11 años. Todo ello se ve reflejado en las condiciones técnicas  internas y externas de los vehículos y están directa o indirectamente ligadas con las condiciones logísticas de los vehículos (afectación en el rendimiento óptimo para la prestación del servicio).",886500000,"MINISALUD, EMERGENCIAS Y DESASTRES",null,null,"FICHA MGA - ANTEPROYECTO - COTIZACIONES - LOCALIZACION","PDF","X",null,"SE RELACIONAN CUADROS EN BLANCO POR LA FALTA DE INFORMACION, ESTAS REPRESENTAN LA DIRECCION DE LOS PROYECTOS"]
[27,"1100-53.02(27)","DOTACION DE EQUIPOS HOSPITALARIOS PARA EL HOSPITAL SAGRADO CORAZON DE JESUS, MUNICIPIO VALLE DEL GUAMUEZ DEPARTAMENTO DEL PUTUMAYO","DOTACION ",null,1960000000]
[28,"1100-53.02(28)","DOTACION DE EQUIPOS HOSPITALARIOS  DE CONTROL ESPECIAL PARA EL HOSPITAL SAGRADO CORAZON DE JESUS, MUNICIPIO VALLE DEL GUAMUEZ DEPARTAMENTO DEL PUTUMAYO","DOTACION "]

{"sheet":"SEGUIMIENTO A PROYECTOS","index":2,"n_rows":44,"n_cols":9,"rows_kept":44,"cut":false,"hidden":true,"merged":[[2,3,2,6],[0,0,1,8]]}
["EMPRESA SOCIAL DEL ESTADO HOSPITAL SAGRADO CORAZON DE JESUS\nSEGUIMIENTO A PROYECTOS REGISTRADOS AÑO 2012 - 2018"]
[]
["ITEM",{"$f":"'REGISTRO DE PROYECTOS '!B6","v":"CODIGO"},{"$f":"'REGISTRO DE PROYECTOS '!C6","v":"NOMBRE DEL PROYECTO"},"SEGUIMIENTO",null,null,null,"EJECUCION","OBSERVACION"]
[null,null,null,"No.1 ","No.2","No.3","No.4"]
[{"$f":"'REGISTRO DE PROYECTOS '!A8","v":1},{"$f":"'REGISTRO DE PROYECTOS '!B8","v":"1100-53.02(13)"},{"$f":"'REGISTRO DE PROYECTOS '!C8","v":"MEJORMIENTO PLANTA FISICA DEL HOSPITAL SAGRADO CORAZON DE JESUS, MUNICIPIO VALLE DEL GUAMUEZ, DEPARTAMENTO DEL PUTUMAYO."}]
[{"$f":"'REGISTRO DE PROYECTOS '!A9","v":2},{"$f":"'REGISTRO DE PROYECTOS '!B9","v":"1100-53.02(08)"},{"$f":"'REGISTRO DE PROYECTOS '!C9","v":"ADECUACION DEL ANDEN PERIMETRAL DEL HOSPITAL SAGRADO CORAZON DE JESUS SECCION PYP BARRIO LAS AMERICAS MUNICIPIO VALLE DEL GUAMUEZ, DEPARTAMENTO DEL PUTUMAYO."}]
[{"$f":"'REGISTRO DE PROYECTOS '!A10","v":3},{"$f":"'REGISTRO DE PROYECTOS '!B10","v":"1100-53.02(16)"},{"$f":"'REGISTRO DE PROYECTOS '!C10","v":"MEJORAMIENTO Y CONSTRUCCION DE PARQUEADEROS Y ZONAS VERDES, E.S.E JESUS SECCION PYP BARRIO LAS AMERICAS MUNICIPIO VALLE DEL GUAMUEZ, DEPARTAMENTO DEL PUTUMAYO."}]
[{"$f":"'REGISTRO DE PROYECTOS '!A11","v":4},{"$f":"'REGISTRO DE PROYECTOS '!B11","v":"1100-53.02(19)"},{"$f":"'REGISTRO DE PROYECTOS '!C11","v":"SUMINISTRO E INSTALACION DE UNA PLANTA DE TRATAMIENTO DE AGUA POTABLE , PARA EL ABASTECIMIENTO DE AGUA POR BOMBEO DEL HOSPITAL SAGRADO CORAZON DE JESUS SECCION PYP BARRIO LAS AMERICAS MUNICIPIO VALLE DEL GUAMUEZ, DEPARTAMENTO DEL PUTUMAYO."}]
[{"$f":"'REGISTRO DE PROYECTOS '!A12","v":5},{"$f":"'REGISTRO DE PROYECTOS '!B12","v":"1100-53.02(17)"},{"$f":"'REGISTRO DE PROYECTOS '!C12","v":"CONSTRUCCION DEL AREA INTEGRAL DE PEDIATRIA, \"E.S.E JESUS SECCION PYP BARRIO LAS AMERICAS MUNICIPIO VALLE DEL GUAMUEZ, DEPARTAMENTO DEL PUTUMAYO\"."}]
[{"$f":"'REGISTRO DE PROYECTOS '!A13","v":6},{"$f":"'REGISTRO DE PROYECTOS '!B13","v":"1100-53.02(14)"},{"$f":"'REGISTRO DE PROYECTOS '!C13","v":"ADQUISICION DE UNA UNIDAD MOVIL PARA PROMOCION Y PREVENION DEL HOSPITAL \"SAGRADO CORAZON DE JESUS\" MUNICIPIO VALLE DEL GUAMUEZ DEPARTAMENTO DEL PUTUMAYO."}]
[{"$f":"'REGISTRO DE PROYECTOS '!A14","v":7},{"$f":"'REGISTRO DE PROYECTOS '!B14","v":"1100-53.02(02)"},{"$f":"'REGISTRO DE PROYECTOS '!C14","v":"REMODELACION DE LA PLANTA FISICA DEL AREA DE QUIROFANO Y SALA PARTOS DE LA E.S.E HOSPITAL \"SAGRADO CORAZON DE JESUS\" MUNICIPIO VALLE DEL GUAMUEZ DEPARTAMENTO DEL PUTUMAYO."}]
[{"$f":"'REGISTRO DE PROYECTOS '!A15","v":8},{"$f":"'REGISTRO DE PROYECTOS '!B15","v":"1100-53.02(07)"},{"$f":"'REGISTRO DE PROYECTOS '!C15","v":"SERVICIO GINECOLOGICO PARA LA ATENCION DE GESTANTES DE ALTO RIESGO EN EL MUNICIPIO VALLE DEL GUAMUEZ, DEPARTAMENTO DEL PUTUMAYO."}]
[{"$f":"'REGISTRO DE PROYECTOS '!A16","v":9},{"$f":"'REGISTRO DE PROYECTOS '!B16","v":"1100-53.02(09)"},{"$f":"'REGISTRO DE PROYECTOS '!C16","v":"AMPLIACION DE AREA MATERNO INFANTIL DEL PESTO DE SALUD DE LA INSPECCION DE POLICIA DEL TIGRE, MUNICIPIO VALLE DEL GUAMUEZ DEPARTAMENTO DEL PUTUMAYO."}]
[{"$f":"'REGISTRO DE PROYECTOS '!A17","v":10},{"$f":"'REGISTRO DE PROYECTOS '!B17","v":"1100-53.02(20)"},{"$f":"'REGISTRO DE PROYECTOS '!C17","v":"ADQUISICION DE UNS UNIDAD MOVIL PARA PROMOCION Y PREVENION DEL HOSPITAL SAGRADO CORAZON DE JESUS, MUNICIPIO VALLE DEL GUAMUEZ, DEPARTAMENTO DEL PUTUMAYO."}]
[{"$f":"'REGISTRO DE PROYECTOS '!A18","v":11},{"$f":"'REGISTRO DE PROYECTOS '!B18","v":"1100-53.02(15)"},{"$f":"'REGISTRO DE PROYECTOS '!C18","v":"DOTACION DEL AREA DE URGENCIAS DEL HOSPITAL \"SAGRADO CORAZON DE JESUS\" MUNICIPIO VALLE DEL GUAMUEZ, DEPARTAMENTO DEL PUTUMAYO."}]
[{"$f":"'REGISTRO DE PROYECTOS '!A19","v":12},{"$f":"'REGISTRO DE PROYECTOS '!B19","v":"1100-53.02(05)"},{"$f":"'REGISTRO DE PROYECTOS '!C19","v":"ADQUISICION DE UNA PLANTA POTABILIZADORA DE AGUA PARA EL HOSPITAL \"SAGRADO CORAZON DE JESUS\" MUNICIPIO VALLE DEL GUAMUEZ, DEPARTAMENTO DEL PUTUMAYO."}]
[{"$f":"'REGISTRO DE PROYECTOS '!A20","v":13},{"$f":"'REGISTRO DE PROYECTOS '!B20","v":"1100-53.02(10)"},{"$f":"'REGISTRO DE PROYECTOS '!C20","v":"ADQUISICION DE DOS AMBULANCIAS BASICAS PARA LA ESE HOSPITAL SAGRADO CORAZON DE JESUS, MUNICIPIO VALLE DEL GUAMUEZ DEPARTAMENTO DEL PUTUMAYO"}]
[{"$f":"'REGISTRO DE PROYECTOS '!A21","v":14},{"$f":"'REGISTRO DE PROYECTOS '!B21","v":"1100-53.02(06)"},{"$f":"'REGISTRO DE PROYECTOS '!C21","v":"DISEÑO DE UNA PLANTA DE TRATAMIENTO DE AGUAS RESIDUALES PARA EL HOSPITAL \"SAGRADO CORAZON DE JESUS\" MUNICIPIO VALLE DEL GUAMUEZ"}]
[{"$f":"'REGISTRO DE PROYECTOS '!A22","v":15},{"$f":"'REGISTRO DE PROYECTOS '!B22","v":"1100-53.02(11)"},{"$f":"'REGISTRO DE PROYECTOS '!C22","v":"DOTACION DEL PUESTO DEL SALUD SAN ANDRES DEL HOSPITAL SAGRADO CORAZON DE JESUS, MUNICIPIO VALLE DEL GUAMUEZ DEPARTAMENTO DEL PUTUMAYO"}]
[{"$f":"'REGISTRO DE PROYECTOS '!A23","v":16},{"$f":"'REGISTRO DE PROYECTOS '!B23","v":"1100-53.02(03)"},{"$f":"'REGISTRO DE PROYECTOS '!C23","v":"DOTACION DE LA UNIDAD DE IMAGENOLOGIA DEL HOSPITAL SAGRADO CORAZON DE JESUS, MUNICIPIO VALLE DEL GUAMUEZ DEPARTAMENTO DEL PUTUMAYO"}]
[{"$f":"'REGISTRO DE PROYECTOS '!A24","v":17},{"$f":"'REGISTRO DE PROYECTOS '!B24","v":"1100-53.02(12)"},{"$f":"'REGISTRO DE PROYECTOS '!C24","v":"DOTACION DE CINCO CAMILLAS PARA EL AREA DE HOSPITALIZACION DE LA E.S.E HOSPITAL \"SAGRADO CORAZON DE JESUS\" MUNICIPIO VALLE DEL GUAMUEZ DEPARTAMENTO DEL PUTUMAYO"}]
[{"$f":"'REGISTRO DE PROYECTOS '!A25","v":18},{"$f":"'REGISTRO DE PROYECTOS '!B25","v":"1100-53.02(01)"},{"$f":"'REGISTRO DE PROYECTOS '!C25","v":"DOTACION DE PUESTO DE SALUD EL VENADO MUNICIPIO DE VALLE DEL GUAMUEZ DEPARTAMENTO DEL PUTUMAYO"}]
[{"$f":"'REGISTRO DE PROYECTOS '!A26","v":19},{"$f":"'REGISTRO DE PROYECTOS '!B26","v":"1100-53.02(18)"},{"$f":"'REGISTRO DE PROYECTOS '!C26","v":"DOTACION DE EQUIPOS HOSPITALARIOS PARA EL HOSPITAL SAGRADO CORAZON DE JESUS, MUNICIPIO VALLE DEL GUAMUEZ DEPARTAMENTO DEL PUTUMAYO"}]
[{"$f":"'REGISTRO DE PROYECTOS '!A27","v":20},{"$f":"'REGISTRO DE PROYECTOS '!B27","v":"1100-53.02(04)"},{"$f":"'REGISTRO DE PROYECTOS '!C27","v":"FORTALECIMIENTO DEL PROGRAMA AMPLIADO DE IMUNIZACIONES (PAI) MUNICIPIO VALLE DEL GUAMUEZ DEPARTAMENTO DEL PUTUMAYO"}]
[{"$f":"'REGISTRO DE PROYECTOS '!A28","v":21},{"$f":"'REGISTRO DE PROYECTOS '!B28","v":"1100-53.02(21)"},{"$f":"'REGISTRO DE PROYECTOS '!C28","v":"REMODELACION DE LA PLANTA FISICA DEL MODULO DE PROMOCION Y PREVENCION  DE LA E.S.E HOSPITAL \"SAGRADO CORAZON DE JESUS\" MUNICIPIO VALLE DEL GUAMUEZ DEPARTAMENTO DEL PUTUMAYO."},null,null,null,null,"no","Proyecto en etapa de modificacion"]
[{"$f":"'REGISTRO DE PROYECTOS '!A29","v":22},{"$f":"'REGISTRO DE PROYECTOS '!B29","v":"1100-53.02(24)"},{"$f":"'REGISTRO DE PROYECTOS '!C29","v":"ADQUISICION DE DOS AMBULANCIAS MEDICALIZADAS PARA LA ESE HOSPITAL SAGRADO CORAZON DE JESUS, MUNICIPIO VALLE DEL GUAMUEZ DEPARTAMENTO DEL PUTUMAYO"},null,null,null,null,"no","Proyecto Radicado "]
[{"$f":"'REGISTRO DE PROYECTOS '!A30","v":23},{"$f":"'REGISTRO DE PROYECTOS '!B30","v":"1100-53.02(22)"},{"$f":"'REGISTRO DE PROYECTOS '!C30","v":"ADQUISICION DE CUATRO PLANTAS POTABILIZADORAS DE AGUA PARA EL HOSPITAL SAGRADO CORAZON DE JESUS \"SEDE PRINCIPAL, SEDE PYP, PUESTO DE SALUD EL TIGRE Y PUESTO DE SALUD EL PLACER\", DEL MUNICIPIO VALLE DEL GUAMUEZ DEPARTAMENTO DEL PUTUMAYO"},null,null,null,null,"no","proyecto en etapa de revision."]
[{"$f":"'REGISTRO DE PROYECTOS '!A31","v":24},{"$f":"'REGISTRO DE PROYECTOS '!B31","v":"1100-53.02(23)"},{"$f":"'REGISTRO DE PROYECTOS '!C31","v":"ADQUISICIÓN DE DOS (02) PLANTAS ELÉCTRICAS PARA LA SEDE PRINCIPAL Y LA SEDE DE PROMOCIÓN Y PREVENCIÓN DE LA ESE HOSPITAL SAGRADO CORAZÓN DE JESÚS DE LA HORMIGA."},null,null,null,null,"no","• El día 10 de septiembre del presente año anunciando que “El proyecto en este momento se encuentra en la \"Cuarta (4ª) Comisión de ONU Hábitat\".\n• El día 01 de octubre anunciando una reunión en Bogotá con el fin de tratar temas relacionados con el proyecto.\nEn adelante no se tiene información del mismo. "]
[{"$f":"'REGISTRO DE PROYECTOS '!A32","v":25},{"$f":"'REGISTRO DE PROYECTOS '!B32","v":"1100-53.02(25)"},{"$f":"'REGISTRO DE PROYECTOS '!C32","v":"ADQUISICIÓN DE UN (01) VEHÍCULO TERRESTRE PARA EL TRANSPORTE DEL PERSONAL ASISTENCIAL QUE PRESTARA SERVICIOS DE SALUD EN LA MODALIDAD EXTRAMURAL DE LA E.S.E. HOSPITAL SAGRADO CORAZON DE JESUS, MUNICIPIO VALLE DEL GUAMUEZ, DEPARTAMENTO DEL PUTUMAYO"},null,null,null,null,"no","Proyecto Radicado "]
[{"$f":"'REGISTRO DE PROYECTOS '!A33","v":26},{"$f":"'REGISTRO DE PROYECTOS '!B33","v":"1100-53.02(26)"},{"$f":"'REGISTRO DE PROYECTOS '!C33","v":"ADQUISICIÓN DE TRES  AMBULANCIAS BASICAS PARA LA ESE HOSPITAL SAGRADO CORAZÓN DE JESÚS DE LA HORMIGA, MUNICIPIO DEL VALLE DEL GUAMUEZ DEPARTAMENTO DEL PUTUMAYO"},null,null,null,null,"no","Proyecto Radicado "]
[{"$f":"'REGISTRO DE PROYECTOS '!A34","v":27},{"$f":"'REGISTRO DE PROYECTOS '!B34","v":"1100-53.02(27)"},{"$f":"'REGISTRO DE PROYECTOS '!C34","v":"DOTACION DE EQUIPOS HOSPITALARIOS PARA EL HOSPITAL SAGRADO CORAZON DE JESUS, MUNICIPIO VALLE DEL GUAMUEZ DEPARTAMENTO DEL PUTUMAYO"},null,null,null,null,"no","Proyecto Radicado "]
[{"$f":"'REGISTRO DE PROYECTOS '!A35","v":28},{"$f":"'REGISTRO DE PROYECTOS '!B35","v":"1100-53.02(28)"},{"$f":"'REGISTRO DE PROYECTOS '!C35","v":"DOTACION DE EQUIPOS HOSPITALARIOS  DE CONTROL ESPECIAL PARA EL HOSPITAL SAGRADO CORAZON DE JESUS, MUNICIPIO VALLE DEL GUAMUEZ DEPARTAMENTO DEL PUTUMAYO"}]
[{"$f":"'REGISTRO DE PROYECTOS '!#REF!","v":{"$error":"#REF!"}},{"$f":"'REGISTRO DE PROYECTOS '!#REF!","v":{"$error":"#REF!"}},{"$f":"'REGISTRO DE PROYECTOS '!#REF!","v":{"$error":"#REF!"}}]
[{"$f":"'REGISTRO DE PROYECTOS '!#REF!","v":{"$error":"#REF!"}},{"$f":"'REGISTRO DE PROYECTOS '!#REF!","v":{"$error":"#REF!"}},{"$f":"'REGISTRO DE PROYECTOS '!#REF!","v":{"$error":"#REF!"}}]
[{"$f":"'REGISTRO DE PROYECTOS '!#REF!","v":{"$error":"#REF!"}},{"$f":"'REGISTRO DE PROYECTOS '!#REF!","v":{"$error":"#REF!"}},{"$f":"'REGISTRO DE PROYECTOS '!#REF!","v":{"$error":"#REF!"}}]
[{"$f":"'REGISTRO DE PROYECTOS '!#REF!","v":{"$error":"#REF!"}},{"$f":"'REGISTRO DE PROYECTOS '!#REF!","v":{"$error":"#REF!"}},{"$f":"'REGISTRO DE PROYECTOS '!#REF!","v":{"$error":"#REF!"}}]
[{"$f":"'REGISTRO DE PROYECTOS '!#REF!","v":{"$error":"#REF!"}},{"$f":"'REGISTRO DE PROYECTOS '!#REF!","v":{"$error":"#REF!"}},{"$f":"'REGISTRO DE PROYECTOS '!#REF!","v":{"$error":"#REF!"}}]
[{"$f":"'REGISTRO DE PROYECTOS '!#REF!","v":{"$error":"#REF!"}},{"$f":"'REGISTRO DE PROYECTOS '!#REF!","v":{"$error":"#REF!"}},{"$f":"'REGISTRO DE PROYECTOS '!#REF!","v":{"$error":"#REF!"}}]
[{"$f":"'REGISTRO DE PROYECTOS '!#REF!","v":{"$error":"#REF!"}},{"$f":"'REGISTRO DE PROYECTOS '!#REF!","v":{"$error":"#REF!"}},{"$f":"'REGISTRO DE PROYECTOS '!#REF!","v":{"$error":"#REF!"}}]
[{"$f":"'REGISTRO DE PROYECTOS '!#REF!","v":{"$error":"#REF!"}},{"$f":"'REGISTRO DE PROYECTOS '!#REF!","v":{"$error":"#REF!"}},{"$f":"'REGISTRO DE PROYECTOS '!#REF!","v":{"$error":"#REF!"}}]
[{"$f":"'REGISTRO DE PROYECTOS '!#REF!","v":{"$error":"#REF!"}},{"$f":"'REGISTRO DE PROYECTOS '!#REF!","v":{"$error":"#REF!"}},{"$f":"'REGISTRO DE PROYECTOS '!#REF!","v":{"$error":"#REF!"}}]
[{"$f":"'REGISTRO DE PROYECTOS '!#REF!","v":{"$error":"#REF!"}},{"$f":"'REGISTRO DE PROYECTOS '!#REF!","v":{"$error":"#REF!"}},{"$f":"'REGISTRO DE PROYECTOS '!#REF!","v":{"$error":"#REF!"}}]
[{"$f":"'REGISTRO DE PROYECTOS '!#REF!","v":{"$error":"#REF!"}},{"$f":"'REGISTRO DE PROYECTOS '!#REF!","v":{"$error":"#REF!"}},{"$f":"'REGISTRO DE PROYECTOS '!#REF!","v":{"$error":"#REF!"}}]
[{"$f":"'REGISTRO DE PROYECTOS '!#REF!","v":{"$error":"#REF!"}},{"$f":"'REGISTRO DE PROYECTOS '!#REF!","v":{"$error":"#REF!"}},{"$f":"'REGISTRO DE PROYECTOS '!#REF!","v":{"$error":"#REF!"}}]

{"sheet":"CRONOGRAMA 2018","index":3,"n_rows":24,"n_cols":369,"rows_kept":24,"cut":false,"hidden":true,"merged":[[4,247,4,276],[4,35,4,62],[4,63,4,93],[0,0,1,368],[4,4,4,34],[4,0,5,0],[4,1,5,1],[4,2,5,2],[4,3,5,3],[4,277,4,307],[4,308,4,337],[4,338,4,368],[4,94,4,123],[4,124,4,154],[4,155,4,184],[4,185,4,215],[4,216,4,246]]}
["EMPRESA SOCIAL DEL ESTADO HOSPITAL SAGRADO CORAZON DE JESUS\nPROYECTOS REGISTRADOS AÑO 2012 - 2018"]
[]
[]
[]
["PROYECTO","ACTIVIDAD ","FECHA DE INICIO","FECHA DE FINALIZACION ","ENERO",null,null,null,null,null,null,null,null,null,null,null,null,null,null,null,null,null,null,null,null,null,null,null,null,null,null,null,null,null,null,"FEBRERO",null,null,null,null,null,null,null,null,null,null,null,null,null,null,null,null,null,null,null,null,null,null,null,null,null,null,null,"MARZO",null,null,null,null,null,null,null,null,null,null,null,null,null,null,null,null,null,null,null,null,null,null,null,null,null,null,null,null,null,null,"ABRIL",null,null,null,null,null,null,null,null,null,null,null,null,null,null,null,null,null,null,null,null,null,null,null,null,null,null,null,null,null,"MAYO",null,null,null,null,null,null,null,null,null,null,null,null,null,null,null,null,null,null,null,null,null,null,null,null,null,null,null,null,null,null,"JUNIO",null,null,null,null,null,null,null,null,null,null,null,null,null,null,null,null,null,null,null,null,null,null,null,null,null,null,null,null,null,"JULIO",null,null,null,null,null,null,null,null,null,null,null,null,null,null,null,null,null,null,null,null,null,null,null,null,null,null,null,null,null,null,"AGOSTO",null,null,null,null,null,null,null,null,null,null,null,null,null,null,null,null,null,null,null,null,null,null,null,null,null,null,null,null,null,null,"SEPTIEMBRE",null,null,null,null,null,null,null,null,null,null,null,null,null,null,null,null,null,null,null,null,null,null,null,null,null,null,null,null,null,"OCTUBRE",null,null,null,null,null,null,null,null,null,null,null,null,null,null,null,null,null,null,null,null,null,null,null,null,null,null,null,null,null,null,"NOVIEMBRE",null,null,null,null,null,null,null,null,null,null,null,null,null,null,null,null,null,null,null,null,null,null,null,null,null,null,null,null,null,"DICIEMBRE"]
[null,null,null,null,"2018-01-01","2018-01-02","2018-01-03","2018-01-04","2018-01-05","2018-01-06","2018-01-07","2018-01-08","2018-01-09","2018-01-10","2018-01-11","2018-01-12","2018-01-13","2018-01-14","2018-01-15","2018-01-16","2018-01-17","2018-01-18","2018-01-19","2018-01-20","2018-01-21","2018-01-22","2018-01-23","2018-01-24","2018-01-25","2018-01-26","2018-01-27","2018-01-28","2018-01-29","2018-01-30","2018-01-31","2018-02-01","2018-02-02","2018-02-03","2018-02-04","2018-02-05","2018-02-06","2018-02-07","2018-02-08","2018-02-09","2018-02-10","2018-02-11","2018-02-12","2018-02-13","2018-02-14","2018-02-15","2018-02-16","2018-02-17","2018-02-18","2018-02-19","2018-02-20","2018-02-21","2018-02-22","2018-02-23","2018-02-24","2018-02-25","2018-02-26","2018-02-27","2018-02-28","2018-03-01","2018-03-02","2018-03-03","2018-03-04","2018-03-05","2018-03-06","2018-03-07","2018-03-08","2018-03-09","2018-03-10","2018-03-11","2018-03-12","2018-03-13","2018-03-14","2018-03-15","2018-03-16","2018-03-17","2018-03-18","2018-03-19","2018-03-20","2018-03-21","2018-03-22","2018-03-23","2018-03-24","2018-03-25","2018-03-26","2018-03-27","2018-03-28","2018-03-29","2018-03-30","2018-03-31","2018-04-01","2018-04-02","2018-04-03","2018-04-04","2018-04-05","2018-04-06","2018-04-07","2018-04-08","2018-04-09","2018-04-10","2018-04-11","2018-04-12","2018-04-13","2018-04-14","2018-04-15","2018-04-16","2018-04-17","2018-04-18","2018-04-19","2018-04-20","2018-04-21","2018-04-22","2018-04-23","2018-04-24","2018-04-25","2018-04-26","2018-04-27","2018-04-28","2018-04-29","2018-04-30","2018-05-01","2018-05-02","2018-05-03","2018-05-04","2018-05-05","2018-05-06","2018-05-07","2018-05-08","2018-05-09","2018-05-10","2018-05-11","2018-05-12","2018-05-13","2018-05-14","2018-05-15","2018-05-16","2018-05-17","2018-05-18","2018-05-19","2018-05-20","2018-05-21","2018-05-22","2018-05-23","2018-05-24","2018-05-25","2018-05-26","2018-05-27","2018-05-28","2018-05-29","2018-05-30","2018-05-31","2018-06-01","2018-06-02","2018-06-03","2018-06-04","2018-06-05","2018-06-06","2018-06-07","2018-06-08","2018-06-09","2018-06-10","2018-06-11","2018-06-12","2018-06-13","2018-06-14","2018-06-15","2018-06-16","2018-06-17","2018-06-18","2018-06-19","2018-06-20","2018-06-21","2018-06-22","2018-06-23","2018-06-24","2018-06-25","2018-06-26","2018-06-27","2018-06-28","2018-06-29","2018-06-30","2018-07-01","2018-07-02","2018-07-03","2018-07-04","2018-07-05","2018-07-06","2018-07-07","2018-07-08","2018-07-09","2018-07-10","2018-07-11","2018-07-12","2018-07-13","2018-07-14","2018-07-15","2018-07-16","2018-07-17","2018-07-18","2018-07-19","2018-07-20","2018-07-21","2018-07-22","2018-07-23","2018-07-24","2018-07-25","2018-07-26","2018-07-27","2018-07-28","2018-07-29","2018-07-30","2018-07-31","2018-08-01","2018-08-02","2018-08-03","2018-08-04","2018-08-05","2018-08-06","2018-08-07","2018-08-08","2018-08-09","2018-08-10","2018-08-11","2018-08-12","2018-08-13","2018-08-14","2018-08-15","2018-08-16","2018-08-17","2018-08-18","2018-08-19","2018-08-20","2018-08-21","2018-08-22","2018-08-23","2018-08-24","2018-08-25","2018-08-26","2018-08-27","2018-08-28","2018-08-29","2018-08-30","2018-08-31","2018-09-01","2018-09-02","2018-09-03","2018-09-04","2018-09-05","2018-09-06","2018-09-07","2018-09-08","2018-09-09","2018-09-10","2018-09-11","2018-09-12","2018-09-13","2018-09-14","2018-09-15","2018-09-16","2018-09-17","2018-09-18","2018-09-19","2018-09-20","2018-09-21","2018-09-22","2018-09-23","2018-09-24","2018-09-25","2018-09-26","2018-09-27","2018-09-28","2018-09-29","2018-09-30","2018-10-01","2018-10-02","2018-10-03","2018-10-04","2018-10-05","2018-10-06","2018-10-07","2018-10-08","2018-10-09","2018-10-10","2018-10-11","2018-10-12","2018-10-13","2018-10-14","2018-10-15","2018-10-16","2018-10-17","2018-10-18","2018-10-19","2018-10-20","2018-10-21","2018-10-22","2018-10-23","2018-10-24","2018-10-25","2018-10-26","2018-10-27","2018-10-28","2018-10-29","2018-10-30","2018-10-31","2018-11-01","2018-11-02","2018-11-03","2018-11-04","2018-11-05","2018-11-06","2018-11-07","2018-11-08","2018-11-09","2018-11-10","2018-11-11","2018-11-12","2018-11-13","2018-11-14","2018-11-15","2018-11-16","2018-11-17","2018-11-18","2018-11-19","2018-11-20","2018-11-21","2018-11-22","2018-11-23","2018-11-24","2018-11-25","2018-11-26","2018-11-27","2018-11-28","2018-11-29","2018-11-30","2018-12-01","2018-12-02","2018-12-03","2018-12-04","2018-12-05","2018-12-06","2018-12-07","2018-12-08","2018-12-09","2018-12-10","2018-12-11","2018-12-12","2018-12-13","2018-12-14","2018-12-15","2018-12-16","2018-12-17","2018-12-18","2018-12-19","2018-12-20","2018-12-21","2018-12-22","2018-12-23","2018-12-24","2018-12-25","2018-12-26","2018-12-27","2018-12-28","2018-12-29","2018-12-30","2018-12-31"]
[{"$f":"'REGISTRO DE PROYECTOS '!C30","v":"ADQUISICION DE CUATRO PLANTAS POTABILIZADORAS DE AGUA PARA EL HOSPITAL SAGRADO CORAZON DE JESUS \"SEDE PRINCIPAL, SEDE PYP, PUESTO DE SALUD EL TIGRE Y PUESTO DE SALUD EL PLACER\", DEL MUNICIPIO VALLE DEL GUAMUEZ DEPARTAMENTO DEL PUTUMAYO"},null,"2018-02-26","2018-08-31"]
[{"$f":"'REGISTRO DE PROYECTOS '!C31","v":"ADQUISICIÓN DE DOS (02) PLANTAS ELÉCTRICAS PARA LA SEDE PRINCIPAL Y LA SEDE DE PROMOCIÓN Y PREVENCIÓN DE LA ESE HOSPITAL SAGRADO CORAZÓN DE JESÚS DE LA HORMIGA."},null,"2018-05-30","2018-10-01"]
[{"$f":"'REGISTRO DE PROYECTOS '!C29","v":"ADQUISICION DE DOS AMBULANCIAS MEDICALIZADAS PARA LA ESE HOSPITAL SAGRADO CORAZON DE JESUS, MUNICIPIO VALLE DEL GUAMUEZ DEPARTAMENTO DEL PUTUMAYO"},null,"2018-07-03","2018-09-30"]
[{"$f":"'REGISTRO DE PROYECTOS '!C32","v":"ADQUISICIÓN DE UN (01) VEHÍCULO TERRESTRE PARA EL TRANSPORTE DEL PERSONAL ASISTENCIAL QUE PRESTARA SERVICIOS DE SALUD EN LA MODALIDAD EXTRAMURAL DE LA E.S.E. HOSPITAL SAGRADO CORAZON DE JESUS, MUNICIPIO VALLE DEL GUAMUEZ, DEPARTAMENTO DEL PUTUMAYO"},null,"2018-07-31","2018-09-30"]
[{"$f":"'REGISTRO DE PROYECTOS '!C33","v":"ADQUISICIÓN DE TRES  AMBULANCIAS BASICAS PARA LA ESE HOSPITAL SAGRADO CORAZÓN DE JESÚS DE LA HORMIGA, MUNICIPIO DEL VALLE DEL GUAMUEZ DEPARTAMENTO DEL PUTUMAYO"},null,"2018-08-31","2018-10-30"]
[{"$f":"'REGISTRO DE PROYECTOS '!C34","v":"DOTACION DE EQUIPOS HOSPITALARIOS PARA EL HOSPITAL SAGRADO CORAZON DE JESUS, MUNICIPIO VALLE DEL GUAMUEZ DEPARTAMENTO DEL PUTUMAYO"},null,"2018-11-01","2018-12-31"]
[{"$f":"'REGISTRO DE PROYECTOS '!C35","v":"DOTACION DE EQUIPOS HOSPITALARIOS  DE CONTROL ESPECIAL PARA EL HOSPITAL SAGRADO CORAZON DE JESUS, MUNICIPIO VALLE DEL GUAMUEZ DEPARTAMENTO DEL PUTUMAYO"},null,"2018-11-01","2018-12-31"]
[{"$f":"'REGISTRO DE PROYECTOS '!#REF!","v":{"$error":"#REF!"}}]
[{"$f":"'REGISTRO DE PROYECTOS '!#REF!","v":{"$error":"#REF!"}}]
[{"$f":"'REGISTRO DE PROYECTOS '!#REF!","v":{"$error":"#REF!"}}]
[{"$f":"'REGISTRO DE PROYECTOS '!#REF!","v":{"$error":"#REF!"}}]
[{"$f":"'REGISTRO DE PROYECTOS '!#REF!","v":{"$error":"#REF!"}}]
[{"$f":"'REGISTRO DE PROYECTOS '!#REF!","v":{"$error":"#REF!"}}]
[{"$f":"'REGISTRO DE PROYECTOS '!#REF!","v":{"$error":"#REF!"}}]
[{"$f":"'REGISTRO DE PROYECTOS '!#REF!","v":{"$error":"#REF!"}}]
[{"$f":"'REGISTRO DE PROYECTOS '!#REF!","v":{"$error":"#REF!"}}]
[{"$f":"'REGISTRO DE PROYECTOS '!#REF!","v":{"$error":"#REF!"}}]
[{"$f":"'REGISTRO DE PROYECTOS '!#REF!","v":{"$error":"#REF!"}}]